[Event "Early-Titled-Tuesday-Blitz-July-09-2024"]
[Site "Chess.com"]
[Date "2024.07.09"]
[Round "7"]
[White "Naruto75_3"]
[Black "GothamChess"]
[Result "1-0"]
[WhiteElo "2570"]
[BlackElo "2749"]
[TimeControl "180+1"]
[EndTime "9:20:58 PDT"]
[Termination "Naruto75_3 won by resignation"]

1. d4 {[%clk 0:03:00.9]} 1... g6 {[%clk 0:02:54.1]} 2. c4 {[%clk 0:02:59.5]}
2... Bg7 {[%clk 0:02:49.9]} 3. Nf3 {[%clk 0:02:59.9]} 3... d6 {[%clk 0:02:50.1]}
4. Nc3 {[%clk 0:02:59.6]} 4... Bg4 {[%clk 0:02:49.1]} 5. Bg5 {[%clk 0:02:57.7]}
5... Nc6 {[%clk 0:02:46.9]} 6. e3 {[%clk 0:02:55.8]} 6... h6 {[%clk 0:02:46.1]}
7. Bh4 {[%clk 0:02:55.3]} 7... g5 {[%clk 0:02:45.5]} 8. Bg3 {[%clk 0:02:55.7]}
8... e5 {[%clk 0:02:39.5]} 9. d5 {[%clk 0:02:51.9]} 9... Nce7 {[%clk 0:02:37.7]}
10. Be2 {[%clk 0:02:51.8]} 10... Bd7 {[%clk 0:02:35.4]} 11. Rc1 {[%clk
0:02:48.5]} 11... f5 {[%clk 0:02:35.1]} 12. h3 {[%clk 0:02:45.5]} 12... f4
{[%clk 0:02:30.1]} 13. exf4 {[%clk 0:02:43.9]} 13... exf4 {[%clk 0:02:30.1]} 14.
Bh2 {[%clk 0:02:44]} 14... Nf6 {[%clk 0:02:20.8]} 15. h4 {[%clk 0:02:38.3]}
15... Ng4 {[%clk 0:02:08.3]} 16. Nxg5 {[%clk 0:02:22.6]} 16... hxg5 {[%clk
0:02:02.8]} 17. Bxg4 {[%clk 0:02:21.7]} 17... Rxh4 {[%clk 0:02:03.4]} 18. Bh5+
{[%clk 0:02:09.9]} 18... Kf8 {[%clk 0:02:02.5]} 19. g3 {[%clk 0:02:10.1]} 19...
Rh3 {[%clk 0:01:50.8]} 20. Ne4 {[%clk 0:02:03.1]} 20... Nf5 {[%clk 0:01:35.8]}
21. Bg4 {[%clk 0:01:36.5]} 21... Qe7 {[%clk 0:01:23.9]} 22. Qd3 {[%clk
0:01:15.7]} 22... Rh8 {[%clk 0:01:10.7]} 23. O-O {[%clk 0:01:13.9]} 23... Nd4
{[%clk 0:01:01.9]} 24. f3 {[%clk 0:01:10.9]} 24... Bxg4 {[%clk 0:00:56.8]} 25.
fxg4 {[%clk 0:01:11.8]} 25... f3 {[%clk 0:00:53.5]} 26. Rce1 {[%clk 0:01:02.7]}
26... Re8 {[%clk 0:00:49.9]} 27. Rxf3+ {[%clk 0:00:55.1]} 27... Nxf3+ {[%clk
0:00:45.3]} 28. Qxf3+ {[%clk 0:00:56]} 28... Qf7 {[%clk 0:00:36.9]} 29. Qxf7+
{[%clk 0:00:54.8]} 29... Kxf7 {[%clk 0:00:37.8]} 30. Nxg5+ {[%clk 0:00:55.1]}
30... Kg6 {[%clk 0:00:37.3]} 31. Ne6 {[%clk 0:00:55.1]} 31... Bxb2 {[%clk
0:00:30.5]} 32. Rb1 {[%clk 0:00:52.7]} 32... Bc3 {[%clk 0:00:17.7]} 33. Kg2
{[%clk 0:00:51.3]} 33... Ba5 {[%clk 0:00:17.1]} 34. Bg1 {[%clk 0:00:48]} 34...
Bb6 {[%clk 0:00:17.6]} 35. a4 {[%clk 0:00:42.6]} 35... Rh7 {[%clk 0:00:15.4]}
36. Rf1 {[%clk 0:00:34.6]} 36... Rf7 {[%clk 0:00:14]} 37. Re1 {[%clk 0:00:33.2]}
37... Ree7 {[%clk 0:00:12.3]} 38. c5 {[%clk 0:00:28.8]} 38... Bxc5 {[%clk
0:00:11.3]} 39. Bxc5 {[%clk 0:00:28.4]} 39... dxc5 {[%clk 0:00:11.7]} 40. Re5
{[%clk 0:00:28.3]} 40... c4 {[%clk 0:00:08.7]} 41. Rg5+ {[%clk 0:00:28.1]} 41...
Kh7 {[%clk 0:00:07.7]} 42. Rh5+ {[%clk 0:00:27.9]} 42... Kg8 {[%clk 0:00:07.7]}
43. Rg5+ {[%clk 0:00:27.8]} 43... Kh8 {[%clk 0:00:08.4]} 44. Rh5+ {[%clk
0:00:27.7]} 44... Rh7 {[%clk 0:00:09.1]} 45. Rf5 {[%clk 0:00:28.2]} 45... Ref7
{[%clk 0:00:09.2]} 46. Re5 {[%clk 0:00:27.8]} 46... c3 {[%clk 0:00:08.7]} 47.
Re3 {[%clk 0:00:27]} 47... Rd7 {[%clk 0:00:07.1]} 48. Nf8 {[%clk 0:00:25.3]}
48... Rhe7 {[%clk 0:00:06.2]} 49. Ng6+ {[%clk 0:00:24.7]} 49... Kg7 {[%clk
0:00:06.7]} 50. Nxe7 {[%clk 0:00:24.9]} 50... c2 {[%clk 0:00:03.9]} 51. Nf5+
{[%clk 0:00:25.4]} 51... Kf6 {[%clk 0:00:04.5]} 52. Rc3 {[%clk 0:00:26]} 52...
Rxd5 {[%clk 0:00:03.8]} 53. Rxc2 {[%clk 0:00:26.5]} 53... c6 {[%clk 0:00:03.5]}
54. Kf3 {[%clk 0:00:26.3]} 54... Rd3+ {[%clk 0:00:03.8]} 55. Kf4 {[%clk
0:00:26.9]} 55... Ra3 {[%clk 0:00:04.6]} 56. g5+ {[%clk 0:00:27.1]} 56... Ke6
{[%clk 0:00:05.3]} 57. Rc4 {[%clk 0:00:27.1]} 57... Ra1 {[%clk 0:00:04.7]} 58.
Re4+ {[%clk 0:00:26.9]} 58... Kf7 {[%clk 0:00:05]} 59. Nd6+ {[%clk 0:00:26.8]}
59... Kg7 {[%clk 0:00:04.9]} 60. Nf5+ {[%clk 0:00:24]} 60... Kf7 {[%clk
0:00:05]} 61. Re7+ {[%clk 0:00:24.5]} 61... Kf8 {[%clk 0:00:05]} 62. Rxb7 {[%clk
0:00:22.4]} 62... Rxa4+ {[%clk 0:00:05.2]} 63. Ke5 {[%clk 0:00:22.6]} 63... Rb4
{[%clk 0:00:04.5]} 64. Rxb4 {[%clk 0:00:21.7]} 1-0

[Event "Early-Titled-Tuesday-Blitz-July-09-2024"]
[Site "Chess.com"]
[Date "2024.07.09"]
[Round "7"]
[White "LikeWater"]
[Black "aquarium76"]
[Result "1-0"]
[WhiteElo "2703"]
[BlackElo "2987"]
[TimeControl "180+1"]
[EndTime "9:21:00 PDT"]
[Termination "LikeWater won by checkmate"]

1. e4 {[%clk 0:03:00.9]} 1... c6 {[%clk 0:03:00]} 2. d4 {[%clk 0:02:59.7]} 2...
d5 {[%clk 0:03:00.6]} 3. exd5 {[%clk 0:03:00.6]} 3... cxd5 {[%clk 0:03:00.8]} 4.
c4 {[%clk 0:03:01.2]} 4... Nf6 {[%clk 0:03:00.4]} 5. Nc3 {[%clk 0:03:01.1]} 5...
Nc6 {[%clk 0:02:52.5]} 6. Nf3 {[%clk 0:03:00.8]} 6... a6 {[%clk 0:02:52.9]} 7.
h3 {[%clk 0:02:56.7]} 7... g6 {[%clk 0:02:40.4]} 8. cxd5 {[%clk 0:02:50.2]} 8...
Nxd5 {[%clk 0:02:40.2]} 9. Bc4 {[%clk 0:02:47.5]} 9... Be6 {[%clk 0:02:37.8]}
10. Bb3 {[%clk 0:02:41]} 10... Bg7 {[%clk 0:02:28.6]} 11. O-O {[%clk 0:02:41]}
11... O-O {[%clk 0:02:23.5]} 12. Re1 {[%clk 0:02:39.3]} 12... Nxc3 {[%clk
0:02:17.7]} 13. bxc3 {[%clk 0:02:39.3]} 13... Bxb3 {[%clk 0:02:17.7]} 14. axb3
{[%clk 0:02:37.7]} 14... e6 {[%clk 0:02:14.6]} 15. Bf4 {[%clk 0:02:26.7]} 15...
Rc8 {[%clk 0:02:12.7]} 16. Qd3 {[%clk 0:02:10]} 16... Qb6 {[%clk 0:02:05.8]} 17.
b4 {[%clk 0:01:57.1]} 17... Rfd8 {[%clk 0:02:05]} 18. Ne5 {[%clk 0:01:53]} 18...
Ne7 {[%clk 0:02:00]} 19. Ra5 {[%clk 0:01:09]} 19... Nd5 {[%clk 0:01:50.2]} 20.
Bd2 {[%clk 0:01:09.2]} 20... Qc7 {[%clk 0:01:49.8]} 21. Rc5 {[%clk 0:01:08.6]}
21... Qe7 {[%clk 0:01:43.3]} 22. Nc4 {[%clk 0:01:05.3]} 22... Qd7 {[%clk
0:01:18.6]} 23. Bg5 {[%clk 0:00:59.1]} 23... Re8 {[%clk 0:01:06.1]} 24. Bd2
{[%clk 0:00:30.3]} 24... f6 {[%clk 0:00:33.8]} 25. h4 {[%clk 0:00:28.8]} 25...
Bf8 {[%clk 0:00:33.8]} 26. h5 {[%clk 0:00:20.3]} 26... g5 {[%clk 0:00:27.5]} 27.
Qf3 {[%clk 0:00:18.4]} 27... Qf7 {[%clk 0:00:25.1]} 28. g3 {[%clk 0:00:13.8]}
28... b6 {[%clk 0:00:18.2]} 29. Rxc8 {[%clk 0:00:10.1]} 29... Rxc8 {[%clk
0:00:19.1]} 30. Ne3 {[%clk 0:00:10.3]} 30... Nxc3 {[%clk 0:00:14.4]} 31. Ng4
{[%clk 0:00:09.4]} 31... Nd5 {[%clk 0:00:14.2]} 32. Qd3 {[%clk 0:00:06.3]} 32...
Qxh5 {[%clk 0:00:11.3]} 33. Ne3 {[%clk 0:00:05.5]} 33... Qf3 {[%clk 0:00:05.9]}
34. Qxa6 {[%clk 0:00:04.4]} 34... Rd8 {[%clk 0:00:05.6]} 35. Nxd5 {[%clk
0:00:04.5]} 35... Rxd5 {[%clk 0:00:05.2]} 36. Qxb6 {[%clk 0:00:05]} 36... Rd6
{[%clk 0:00:05.1]} 37. Qc5 {[%clk 0:00:04.3]} 37... Qd3 {[%clk 0:00:04.4]} 38.
Be3 {[%clk 0:00:04.1]} 38... Rd5 {[%clk 0:00:02.8]} 39. Qc8 {[%clk 0:00:04.3]}
39... Kf7 {[%clk 0:00:02.4]} 40. Qc7+ {[%clk 0:00:04.1]} 40... Kg6 {[%clk
0:00:02.3]} 41. Rc1 {[%clk 0:00:03.8]} 41... Qe4 {[%clk 0:00:01.2]} 42. Qb8
{[%clk 0:00:03.8]} 42... Bg7 {[%clk 0:00:01.6]} 43. Qe8+ {[%clk 0:00:03.2]}
43... Kh6 {[%clk 0:00:01.4]} 44. Qf7 {[%clk 0:00:03.5]} 44... Qg6 {[%clk
0:00:01.4]} 45. Qe7 {[%clk 0:00:03.5]} 45... f5 {[%clk 0:00:01.3]} 46. Rc6
{[%clk 0:00:03.8]} 46... Kh5 {[%clk 0:00:01.1]} 47. Rxe6 {[%clk 0:00:04.2]}
47... f4 {[%clk 0:00:01.4]} 48. Rxg6 {[%clk 0:00:04.4]} 48... Kxg6 {[%clk
0:00:01.6]} 49. gxf4 {[%clk 0:00:04.8]} 49... gxf4 {[%clk 0:00:01.4]} 50. Qe6+
{[%clk 0:00:05.2]} 50... Bf6 {[%clk 0:00:02]} 51. Qxd5 {[%clk 0:00:05.7]} 51...
fxe3 {[%clk 0:00:02.9]} 52. fxe3 {[%clk 0:00:06.4]} 52... Bg5 {[%clk 0:00:03.4]}
53. Kg2 {[%clk 0:00:06.8]} 53... Bxe3 {[%clk 0:00:03.9]} 54. Kf3 {[%clk
0:00:07.7]} 54... Bg5 {[%clk 0:00:04.4]} 55. Qe4+ {[%clk 0:00:08.3]} 55... Kf6
{[%clk 0:00:04.7]} 56. d5 {[%clk 0:00:09.2]} 56... h5 {[%clk 0:00:05.2]} 57. b5
{[%clk 0:00:10.1]} 57... h4 {[%clk 0:00:05.4]} 58. Qe6+ {[%clk 0:00:11]} 58...
Kg7 {[%clk 0:00:05.8]} 59. Kg4 {[%clk 0:00:11.9]} 59... h3 {[%clk 0:00:06.1]}
60. Kxh3 {[%clk 0:00:12.3]} 60... Bf4 {[%clk 0:00:06.1]} 61. Kg4 {[%clk
0:00:13.2]} 61... Bd2 {[%clk 0:00:05.5]} 62. b6 {[%clk 0:00:13.3]} 62... Ba5
{[%clk 0:00:05.4]} 63. b7 {[%clk 0:00:14.2]} 63... Bc7 {[%clk 0:00:06.1]} 64. d6
{[%clk 0:00:14.6]} 64... Bb8 {[%clk 0:00:06]} 65. d7 {[%clk 0:00:15.1]} 65...
Bc7 {[%clk 0:00:06.1]} 66. b8=Q {[%clk 0:00:15.6]} 66... Bxb8 {[%clk 0:00:06.5]}
67. d8=Q {[%clk 0:00:16.1]} 67... Bd6 {[%clk 0:00:06.1]} 68. Qdg8# {[%clk
0:00:16.4]} 1-0

[Event "Early-Titled-Tuesday-Blitz-July-09-2024"]
[Site "Chess.com"]
[Date "2024.07.09"]
[Round "7"]
[White "HaryKane"]
[Black "eightbyeightchess"]
[Result "1-0"]
[WhiteElo "2613"]
[BlackElo "2449"]
[TimeControl "180+1"]
[EndTime "9:21:03 PDT"]
[Termination "HaryKane won by resignation"]

1. d4 {[%clk 0:03:00.9]} 1... d5 {[%clk 0:02:58.1]} 2. c4 {[%clk 0:02:59.4]}
2... c6 {[%clk 0:02:58.2]} 3. Nf3 {[%clk 0:02:57.3]} 3... Nf6 {[%clk 0:02:56.2]}
4. e3 {[%clk 0:02:57.1]} 4... Bf5 {[%clk 0:02:45.1]} 5. Nc3 {[%clk 0:02:50.1]}
5... e6 {[%clk 0:02:44.7]} 6. Qb3 {[%clk 0:02:47.1]} 6... Qc7 {[%clk 0:02:42.3]}
7. Bd2 {[%clk 0:02:45.6]} 7... Nbd7 {[%clk 0:02:35.6]} 8. Rc1 {[%clk 0:02:44.7]}
8... Qb8 {[%clk 0:02:35.3]} 9. Be2 {[%clk 0:02:37.4]} 9... Bd6 {[%clk
0:02:35.1]} 10. O-O {[%clk 0:02:37]} 10... Ne4 {[%clk 0:02:35]} 11. Rfd1 {[%clk
0:02:30.6]} 11... Nxc3 {[%clk 0:02:21.9]} 12. bxc3 {[%clk 0:02:24.2]} 12... Nf6
{[%clk 0:02:20]} 13. cxd5 {[%clk 0:02:22.1]} 13... exd5 {[%clk 0:02:18.5]} 14.
c4 {[%clk 0:02:20.4]} 14... Be4 {[%clk 0:01:40.5]} 15. h3 {[%clk 0:02:13.3]}
15... O-O {[%clk 0:01:39.6]} 16. cxd5 {[%clk 0:02:02.3]} 16... Bxd5 {[%clk
0:01:30.5]} 17. Qb2 {[%clk 0:02:00.8]} 17... Qc7 {[%clk 0:01:22.4]} 18. Rb1
{[%clk 0:02:00.1]} 18... Rab8 {[%clk 0:01:20.1]} 19. Rdc1 {[%clk 0:01:57.4]}
19... Qe7 {[%clk 0:01:19.7]} 20. Bb4 {[%clk 0:01:54.2]} 20... Ne4 {[%clk
0:01:16.8]} 21. Bxd6 {[%clk 0:01:46.8]} 21... Qxd6 {[%clk 0:01:16.7]} 22. Ne5
{[%clk 0:01:38.5]} 22... Ng5 {[%clk 0:00:47.8]} 23. h4 {[%clk 0:01:13]} 23...
Ne4 {[%clk 0:00:21.8]} 24. Bf3 {[%clk 0:01:10.4]} 24... f6 {[%clk 0:00:09]} 25.
Nd3 {[%clk 0:01:05.4]} 25... Rfe8 {[%clk 0:00:05]} 26. Qb4 {[%clk 0:01:01.1]}
26... Qd7 {[%clk 0:00:03.2]} 27. Bxe4 {[%clk 0:00:56.6]} 27... Rxe4 {[%clk
0:00:03.8]} 28. Qd2 {[%clk 0:00:32.7]} 28... Rxh4 {[%clk 0:00:02.7]} 29. f3
{[%clk 0:00:30.7]} 29... Re8 {[%clk 0:00:01.5]} 30. e4 {[%clk 0:00:30.7]} 30...
Bf7 {[%clk 0:00:01.5]} 31. Nc5 {[%clk 0:00:30.4]} 31... Qd6 {[%clk 0:00:01.3]}
32. Qf2 {[%clk 0:00:25.9]} 32... Rh5 {[%clk 0:00:01.4]} 33. Rxb7 {[%clk
0:00:24.8]} 33... Qh2+ {[%clk 0:00:01.7]} 34. Kf1 {[%clk 0:00:24.5]} 34... Qh1+
{[%clk 0:00:01.5]} 35. Qg1 {[%clk 0:00:25.1]} 35... Qh4 {[%clk 0:00:02.2]} 36.
Nd3 {[%clk 0:00:21]} 36... Rg5 {[%clk 0:00:02.6]} 37. Nf2 {[%clk 0:00:19.2]}
37... Bh5 {[%clk 0:00:02.8]} 38. Rc3 {[%clk 0:00:18.4]} 38... Qf4 {[%clk
0:00:02.9]} 39. Rb1 {[%clk 0:00:16.9]} 39... Qd2 {[%clk 0:00:02.9]} 40. Rbc1
{[%clk 0:00:15.2]} 40... Qxa2 {[%clk 0:00:02.9]} 41. R3c2 {[%clk 0:00:15.4]}
41... Qa3 {[%clk 0:00:03]} 42. Nh3 {[%clk 0:00:14.2]} 42... Rg6 {[%clk
0:00:02.6]} 43. Qf2 {[%clk 0:00:13.9]} 43... Rd8 {[%clk 0:00:02]} 44. Nf4 {[%clk
0:00:13.2]} 44... Rh6 {[%clk 0:00:01.7]} 45. Rc3 {[%clk 0:00:11.2]} 45... Qa6+
{[%clk 0:00:01.1]} 46. Kg1 {[%clk 0:00:10.7]} 46... Bf7 {[%clk 0:00:02]} 47. e5
{[%clk 0:00:09.5]} 47... fxe5 {[%clk 0:00:02.3]} 48. dxe5 {[%clk 0:00:10.4]}
48... Rh5 {[%clk 0:00:01.8]} 49. Nxh5 {[%clk 0:00:10.2]} 49... Bxh5 {[%clk
0:00:02.7]} 50. Rxc6 {[%clk 0:00:09.3]} 50... Qd3 {[%clk 0:00:03.3]} 51. R6c3
{[%clk 0:00:09.2]} 51... Qd5 {[%clk 0:00:03.2]} 52. Re1 {[%clk 0:00:08.6]} 52...
Qe6 {[%clk 0:00:03.6]} 53. Rce3 {[%clk 0:00:09]} 53... Bf7 {[%clk 0:00:03.8]}
54. f4 {[%clk 0:00:09.4]} 54... h6 {[%clk 0:00:04.2]} 55. f5 {[%clk 0:00:09.4]}
55... Qb6 {[%clk 0:00:04.9]} 56. e6 {[%clk 0:00:09.6]} 56... Be8 {[%clk
0:00:05.4]} 57. f6 {[%clk 0:00:09.6]} 57... gxf6 {[%clk 0:00:05.3]} 58. Qxf6
{[%clk 0:00:09.5]} 58... Rd3 {[%clk 0:00:05.9]} 59. Qe5 {[%clk 0:00:06.7]} 59...
Rxe3 {[%clk 0:00:06.3]} 60. Qxe3 {[%clk 0:00:07.6]} 60... Qxe3+ {[%clk
0:00:06.3]} 61. Rxe3 {[%clk 0:00:08.5]} 61... Kf8 {[%clk 0:00:06.9]} 62. e7+
{[%clk 0:00:06.9]} 62... Kf7 {[%clk 0:00:06.9]} 63. Ra3 {[%clk 0:00:07.4]} 63...
a5 {[%clk 0:00:07]} 64. Rxa5 {[%clk 0:00:07.2]} 64... Kxe7 {[%clk 0:00:07.2]}
65. Ra6 {[%clk 0:00:07.8]} 65... h5 {[%clk 0:00:07.4]} 66. Kf2 {[%clk
0:00:08.1]} 66... Kf7 {[%clk 0:00:07.8]} 67. Kg3 {[%clk 0:00:08.6]} 67... Kg7
{[%clk 0:00:08.4]} 68. Kh4 {[%clk 0:00:09.2]} 68... Bf7 {[%clk 0:00:08.3]} 69.
Kg5 {[%clk 0:00:09.5]} 69... Bd5 {[%clk 0:00:08.6]} 70. Rd6 {[%clk 0:00:09.2]}
70... Bxg2 {[%clk 0:00:08.4]} 71. Rd7+ {[%clk 0:00:09.1]} 71... Kh8 {[%clk
0:00:08.2]} 72. Kh6 {[%clk 0:00:07.3]} 72... Kg8 {[%clk 0:00:08.4]} 73. Rg7+
{[%clk 0:00:07.5]} 73... Kf8 {[%clk 0:00:08.8]} 74. Rxg2 {[%clk 0:00:08.4]} 1-0

[Event "Early-Titled-Tuesday-Blitz-July-09-2024"]
[Site "Chess.com"]
[Date "2024.07.09"]
[Round "7"]
[White "ploxoi"]
[Black "AndresDelgado77"]
[Result "1-0"]
[WhiteElo "2480"]
[BlackElo "2337"]
[TimeControl "180+1"]
[EndTime "9:21:04 PDT"]
[Termination "ploxoi won on time"]

1. d4 {[%clk 0:03:00.9]} 1... Nf6 {[%clk 0:02:59.8]} 2. c4 {[%clk 0:03:01.3]}
2... g6 {[%clk 0:02:56.1]} 3. Nc3 {[%clk 0:03:00.7]} 3... Bg7 {[%clk 0:02:54.8]}
4. e4 {[%clk 0:03:00.5]} 4... O-O {[%clk 0:02:54.2]} 5. Nf3 {[%clk 0:03:00.8]}
5... d6 {[%clk 0:02:50.6]} 6. Be2 {[%clk 0:03:01.2]} 6... Bg4 {[%clk 0:02:44.8]}
7. Be3 {[%clk 0:03:00.1]} 7... Bxf3 {[%clk 0:02:34.5]} 8. Bxf3 {[%clk 0:03:01]}
8... Nc6 {[%clk 0:02:35.4]} 9. d5 {[%clk 0:02:58.1]} 9... Ne5 {[%clk 0:02:34.7]}
10. Be2 {[%clk 0:02:58.6]} 10... h5 {[%clk 0:02:33.5]} 11. h3 {[%clk 0:02:58.1]}
11... c5 {[%clk 0:02:28.3]} 12. O-O {[%clk 0:02:57]} 12... a6 {[%clk 0:02:22.8]}
13. a4 {[%clk 0:02:54.3]} 13... Qc7 {[%clk 0:02:17.5]} 14. Qd2 {[%clk
0:02:46.3]} 14... Ned7 {[%clk 0:01:59]} 15. f4 {[%clk 0:02:38.9]} 15... b6
{[%clk 0:01:52]} 16. Rae1 {[%clk 0:02:37.5]} 16... Rad8 {[%clk 0:01:49.1]} 17.
Bd3 {[%clk 0:02:29.3]} 17... e6 {[%clk 0:01:48.7]} 18. Bc2 {[%clk 0:02:15.5]}
18... exd5 {[%clk 0:01:47.6]} 19. exd5 {[%clk 0:02:15.3]} 19... Rde8 {[%clk
0:01:42]} 20. Bf2 {[%clk 0:02:15]} 20... Rxe1 {[%clk 0:01:35.3]} 21. Rxe1 {[%clk
0:02:15.9]} 21... Re8 {[%clk 0:01:35.4]} 22. Bh4 {[%clk 0:02:14.2]} 22... Qb8
{[%clk 0:01:30.6]} 23. b3 {[%clk 0:01:46.8]} 23... Bh6 {[%clk 0:01:24.1]} 24.
Rf1 {[%clk 0:01:29.5]} 24... Qd8 {[%clk 0:01:13.5]} 25. Bg5 {[%clk 0:01:29.4]}
25... Bxg5 {[%clk 0:01:12.1]} 26. fxg5 {[%clk 0:01:30.3]} 26... Nh7 {[%clk
0:01:11]} 27. h4 {[%clk 0:01:30.5]} 27... Ne5 {[%clk 0:01:03.9]} 28. Ne4 {[%clk
0:01:29.1]} 28... Ng4 {[%clk 0:01:03.1]} 29. Qf4 {[%clk 0:01:26.9]} 29... Ne5
{[%clk 0:00:57.3]} 30. Ng3 {[%clk 0:01:24.7]} 30... Rf8 {[%clk 0:00:52.5]} 31.
Qe4 {[%clk 0:01:22.2]} 31... f5 {[%clk 0:00:49.7]} 32. gxf6 {[%clk 0:01:19.8]}
32... Rxf6 {[%clk 0:00:49.5]} 33. Nxh5 {[%clk 0:01:10.4]} 33... Rxf1+ {[%clk
0:00:47.5]} 34. Kxf1 {[%clk 0:01:11.3]} 34... Nf6 {[%clk 0:00:34]} 35. Nxf6+
{[%clk 0:01:07.8]} 35... Qxf6+ {[%clk 0:00:34.3]} 36. Kg1 {[%clk 0:01:03.6]}
36... Kg7 {[%clk 0:00:33.7]} 37. h5 {[%clk 0:00:45.7]} 37... gxh5 {[%clk
0:00:26.2]} 38. Qh7+ {[%clk 0:00:46.2]} 38... Kf8 {[%clk 0:00:26.5]} 39. Qxh5
{[%clk 0:00:47.1]} 39... Qf4 {[%clk 0:00:23.9]} 40. Qf5+ {[%clk 0:00:28.5]}
40... Qxf5 {[%clk 0:00:23.4]} 41. Bxf5 {[%clk 0:00:29.4]} 41... a5 {[%clk
0:00:21.1]} 42. Kf2 {[%clk 0:00:28.6]} 42... Kg7 {[%clk 0:00:21.3]} 43. Ke3
{[%clk 0:00:29]} 43... Kf6 {[%clk 0:00:21.7]} 44. Kf4 {[%clk 0:00:29.6]} 44...
Nf7 {[%clk 0:00:20.6]} 45. Be6 {[%clk 0:00:28]} 45... Ng5 {[%clk 0:00:19.2]} 46.
Bg4 {[%clk 0:00:22.4]} 46... Nf7 {[%clk 0:00:17.5]} 47. Bh5 {[%clk 0:00:22.8]}
47... Ne5 {[%clk 0:00:16.4]} 48. Be2 {[%clk 0:00:19.1]} 48... Ng6+ {[%clk
0:00:15.7]} 49. Kg4 {[%clk 0:00:16.9]} 49... Ne5+ {[%clk 0:00:11.2]} 50. Kh5
{[%clk 0:00:17.5]} 50... Kf5 {[%clk 0:00:10.9]} 51. g4+ {[%clk 0:00:17.9]} 51...
Kf6 {[%clk 0:00:05.7]} 52. g5+ {[%clk 0:00:17.7]} 52... Kg7 {[%clk 0:00:05.7]}
53. Bf1 {[%clk 0:00:08.7]} 53... Ng6 {[%clk 0:00:05.3]} 54. Kg4 {[%clk
0:00:08.2]} 54... Ne5+ {[%clk 0:00:01.1]} 55. Kf5 {[%clk 0:00:08.5]} 55... Kf7
{[%clk 0:00:01.7]} 56. Be2 {[%clk 0:00:07.9]} 1-0

[Event "Early-Titled-Tuesday-Blitz-July-09-2024"]
[Site "Chess.com"]
[Date "2024.07.09"]
[Round "7"]
[White "chessmachine14"]
[Black "howitzer14"]
[Result "0-1"]
[WhiteElo "2225"]
[BlackElo "3028"]
[TimeControl "180+1"]
[EndTime "9:21:06 PDT"]
[Termination "howitzer14 won on time"]

1. e4 {[%clk 0:03:00.9]} 1... c5 {[%clk 0:02:59.7]} 2. Nf3 {[%clk 0:03:00.5]}
2... d6 {[%clk 0:03:00]} 3. d4 {[%clk 0:02:59.4]} 3... cxd4 {[%clk 0:03:00.9]}
4. Nxd4 {[%clk 0:02:59.6]} 4... Nf6 {[%clk 0:03:01.6]} 5. Nc3 {[%clk 0:03:00]}
5... a6 {[%clk 0:03:02.3]} 6. h3 {[%clk 0:02:58.4]} 6... e5 {[%clk 0:02:52.5]}
7. Nf3 {[%clk 0:02:52.1]} 7... Qc7 {[%clk 0:02:49.8]} 8. a4 {[%clk 0:02:51.3]}
8... h6 {[%clk 0:02:47.2]} 9. Be2 {[%clk 0:02:50.2]} 9... b6 {[%clk 0:02:39.6]}
10. Nd2 {[%clk 0:02:44]} 10... Bb7 {[%clk 0:02:37.9]} 11. Bf3 {[%clk 0:02:43.9]}
11... Be7 {[%clk 0:02:28.4]} 12. Nf1 {[%clk 0:02:43]} 12... Nc6 {[%clk
0:02:21.8]} 13. Be3 {[%clk 0:02:39.1]} 13... O-O {[%clk 0:02:14.8]} 14. Ng3
{[%clk 0:02:39.1]} 14... Na5 {[%clk 0:02:13.6]} 15. Nf5 {[%clk 0:02:34]} 15...
Nc4 {[%clk 0:02:13.3]} 16. Bc1 {[%clk 0:02:34.1]} 16... Rfd8 {[%clk 0:02:06.1]}
17. Qd3 {[%clk 0:02:10.1]} 17... Bf8 {[%clk 0:01:59.8]} 18. b3 {[%clk
0:02:05.9]} 18... Na5 {[%clk 0:01:58.2]} 19. Ne3 {[%clk 0:01:57.6]} 19... Rac8
{[%clk 0:01:56.9]} 20. Bb2 {[%clk 0:01:57.7]} 20... Nc6 {[%clk 0:01:55]} 21.
Ncd5 {[%clk 0:01:57.2]} 21... Nxd5 {[%clk 0:01:52]} 22. Nxd5 {[%clk 0:01:57.3]}
22... Qb8 {[%clk 0:01:52]} 23. O-O {[%clk 0:01:50]} 23... Qa7 {[%clk 0:01:46.8]}
24. Bc1 {[%clk 0:01:44]} 24... Ne7 {[%clk 0:01:41.8]} 25. Nxe7+ {[%clk
0:01:32.8]} 25... Bxe7 {[%clk 0:01:42.7]} 26. Be3 {[%clk 0:01:32.9]} 26... a5
{[%clk 0:01:42.9]} 27. Rfd1 {[%clk 0:01:25.4]} 27... Bc6 {[%clk 0:01:40.4]} 28.
c3 {[%clk 0:01:18.3]} 28... Rc7 {[%clk 0:01:15.1]} 29. b4 {[%clk 0:01:17.1]}
29... Ra8 {[%clk 0:00:52.5]} 30. Rdb1 {[%clk 0:01:16.5]} 30... Rb7 {[%clk
0:00:52.6]} 31. Qc4 {[%clk 0:00:57.9]} 31... Bd7 {[%clk 0:00:50.4]} 32. Bg4
{[%clk 0:00:55.8]} 32... Be8 {[%clk 0:00:43.4]} 33. Qd5 {[%clk 0:00:51.6]} 33...
Rab8 {[%clk 0:00:33.3]} 34. Be2 {[%clk 0:00:43.4]} 34... Kf8 {[%clk 0:00:23.4]}
35. f4 {[%clk 0:00:34.6]} 35... exf4 {[%clk 0:00:21.4]} 36. Bxf4 {[%clk
0:00:33.4]} 36... axb4 {[%clk 0:00:20.2]} 37. Rxb4 {[%clk 0:00:31]} 37... b5+
{[%clk 0:00:20.5]} 38. Kh2 {[%clk 0:00:15.4]} 38... bxa4 {[%clk 0:00:20.9]} 39.
Bxd6 {[%clk 0:00:13.2]} 39... Rxb4 {[%clk 0:00:20.5]} 40. cxb4 {[%clk
0:00:12.8]} 40... Rd8 {[%clk 0:00:19.9]} 41. e5 {[%clk 0:00:12.5]} 41... Bxd6
{[%clk 0:00:20.1]} 42. exd6 {[%clk 0:00:12.4]} 42... Qb6 {[%clk 0:00:20.8]} 43.
Rd1 {[%clk 0:00:06.8]} 43... Qxb4 {[%clk 0:00:20.7]} 44. Bg4 {[%clk 0:00:06.9]}
44... Qf4+ {[%clk 0:00:19.7]} 45. Kh1 {[%clk 0:00:07.4]} 45... h5 {[%clk
0:00:12.6]} 46. d7 {[%clk 0:00:06.8]} 46... hxg4 {[%clk 0:00:12.1]} 47. dxe8=Q+
{[%clk 0:00:04.8]} 47... Rxe8 {[%clk 0:00:13]} 48. Qc5+ {[%clk 0:00:03.5]} 48...
Kg8 {[%clk 0:00:12.7]} 49. Qb5 {[%clk 0:00:02.8]} 49... Rf8 {[%clk 0:00:09.4]}
50. Ra1 {[%clk 0:00:01.8]} 50... gxh3 {[%clk 0:00:08.7]} 51. gxh3 {[%clk
0:00:02.7]} 51... Qf3+ {[%clk 0:00:08.3]} 52. Kh2 {[%clk 0:00:03.2]} 52... Qf4+
{[%clk 0:00:08.9]} 53. Kh1 {[%clk 0:00:03.6]} 53... Qe4+ {[%clk 0:00:09.4]} 54.
Kh2 {[%clk 0:00:03.7]} 54... Qc2+ {[%clk 0:00:09.7]} 55. Kh1 {[%clk 0:00:03.8]}
55... Ra8 {[%clk 0:00:09.5]} 56. Qb7 {[%clk 0:00:03]} 56... Ra5 {[%clk
0:00:05.2]} 57. Qb4 {[%clk 0:00:02.6]} 57... Qc6+ {[%clk 0:00:04.2]} 58. Kh2
{[%clk 0:00:02]} 58... Qa8 {[%clk 0:00:05]} 0-1